{"text_format":"1","workbook":"xlsx","n_sheets":1,"sheets":["Sheet1"],"not_rendered":{"charts":0,"images":0,"macros":1,"external_links":0,"defined_names":1,"comments":0,"pivot_tables":0},"unopened":[],"bounds":{"document_bytes":16777216,"sheet_cells":100000,"rows_first":2000,"rows_last":500,"rows_between":2000,"halvings":0,"cell_chars":16384,"cell_head_chars":4096},"cells_cut":0,"cells_raw":0,"read":"whole","date_system":"1900"}

{"sheet":"Sheet1","index":0,"n_rows":32,"n_cols":45,"rows_kept":32,"cut":false,"hidden":false,"merged":[[31,0,31,5],[19,0,19,2],[19,3,19,5],[19,6,19,9],[20,0,20,2],[9,0,9,2],[9,3,9,5],[1,0,2,2],[1,3,2,5],[1,6,2,9],[5,0,5,2],[5,3,5,5],[5,6,5,9],[6,0,6,2],[6,3,6,5],[6,6,6,9],[3,0,3,2],[3,3,3,5],[3,6,3,9],[4,0,4,2],[4,3,4,5],[4,6,4,9],[9,6,9,9],[10,0,10,2],[1,10,1,11],[1,12,1,13],[1,14,1,15],[1,20,1,21],[1,22,1,23],[0,44,0,45],[0,41,0,42],[0,38,0,39],[1,36,1,37],[1,38,1,39],[1,40,1,41],[1,16,1,17],[1,18,1,19],[1,42,1,43],[1,24,1,25],[1,26,1,27],[1,28,1,29],[1,30,1,31],[1,32,1,33],[1,34,1,35],[1,44,2,45],[10,3,10,5],[10,6,10,9],[11,0,11,2],[11,3,11,5],[11,6,11,9],[7,0,7,2],[7,3,7,5],[7,6,7,9],[8,0,8,2],[8,3,8,5],[8,6,8,9],[15,3,15,5],[15,6,15,9],[16,0,16,2],[16,3,16,5],[16,6,16,9],[12,0,12,2],[12,3,12,5],[12,6,12,9],[14,0,14,2],[14,3,14,5],[14,6,14,9],[3,44,3,45],[4,44,4,45],[5,44,5,45],[6,44,6,45],[7,44,7,45],[8,44,8,45],[29,0,29,2],[29,3,29,5],[29,6,29,9],[27,0,27,2],[27,3,27,5],[27,6,27,9],[28,0,28,2],[28,3,28,5],[28,6,28,9],[25,0,25,2],[25,3,25,5],[25,6,25,9],[26,0,26,2],[26,3,26,5],[26,6,26,9],[23,0,23,2],[23,3,23,5],[9,44,9,45],[10,44,10,45],[11,44,11,45],[12,44,12,45],[14,44,14,45],[15,44,15,45],[31,6,31,9],[30,0,30,2],[30,3,30,5],[30,6,30,9],[23,6,23,9],[24,0,24,2],[24,3,24,5],[24,6,24,9],[20,3,20,5],[20,6,20,9],[21,0,21,2],[21,3,21,5],[21,6,21,9],[22,0,22,2],[22,3,22,5],[22,6,22,9],[28,44,28,45],[29,44,29,45],[30,44,30,45],[31,44,31,45],[13,44,13,45],[13,0,13,2],[13,3,13,5],[13,6,13,9],[22,44,22,45],[23,44,23,45],[24,44,24,45],[25,44,25,45],[26,44,26,45],[27,44,27,45],[16,44,16,45],[17,44,17,45],[18,44,18,45],[19,44,19,45],[20,44,20,45],[21,44,21,45],[17,0,17,2],[17,3,17,5],[17,6,17,9],[18,0,18,2],[18,3,18,5],[18,6,18,9],[15,0,15,2]]}
["勤務シフト表",null,null,null,null,null,null,null,null,null,null,null,null,null,null,null,null,null,null,null,null,null,null,null,null,null,null,null,null,null,null,null,null,null,null,null,null,28,"年",null,1,"月",null,15,"日"]
["種別",null,null,"名　前",null,null,"担　当",null,null,null,"1900-01-08",null,"1900-01-09",null,"1900-01-10",null,"1900-01-11",null,"1900-01-12",null,"1900-01-13",null,"1900-01-14",null,"1900-01-15",null,"1900-01-16",null,"1900-01-17",null,"1900-01-18",null,"1900-01-19",null,"1900-01-20",null,"1900-01-21",null,"1900-01-22",null,"1900-01-23",null,"1900-01-24",null,"勤務\n時間"]
[null,null,null,null,null,null,null,null,null,null,"00","30","00","30","00","30","00","30","00","30","00","30","00","30","00","30","00","30","00","30","00","30","00","30","00","30","00","30","00","30","00","30","00","30"]
["店長",null,null,"佐藤",null,null,"マネジャー",null,null,null,null,null,null,null,null,null,null,null,null,null,null,null,null,null,null,null,null,null,null,null,null,null,null,null,null,null,null,null,null,null,null,null,null,null,{"$f":"CountColor(K4:AR4)*0.5","v":8}]
["社員",null,null,"鈴木",null,null,"レジ",null,null,null,null,null,null,null,null,null,null,null,null,null,null,null,null,null,null,null,null,null,null,null,null,null,null,null,null,null,null,null,null,null,null,null,null,null,{"$f":"CountColor(K5:AR5)*0.5","v":8}]
["パート",null,null,"後藤",null,null,"レジ",null,null,null,null,null,null,null,null,null,null,null,null,null,null,null,null,null,null,null,null,null,null,null,null,null,null,null,null,null,null,null,null,null,null,null,null,null,{"$f":"CountColor(K6:AR6)*0.5","v":3.5}]
["パート",null,null,"吉田",null,null,"レジ",null,null,null,null,null,null,null,null,null,null,null,null,null,null,null,null,null,null,null,null,null,null,null,null,null,null,null,null,null,null,null,null,null,null,null,null,null,{"$f":"CountColor(K7:AR7)*0.5","v":3.5}]
[null,null,null,null,null,null,null,null,null,null,null,null,null,null,null,null,null,null,null,null,null,null,null,null,null,null,null,null,null,null,null,null,null,null,null,null,null,null,null,null,null,null,null,null,4.5]
[null,null,null,null,null,null,null,null,null,null,null,null,null,null,null,null,null,null,null,null,null,null,null,null,null,null,null,null,null,null,null,null,null,null,null,null,null,null,null,null,null,null,null,null,0]
[null,null,null,null,null,null,null,null,null,null,null,null,null,null,null,null,null,null,null,null,null,null,null,null,null,null,null,null,null,null,null,null,null,null,null,null,null,null,null,null,null,null,null,null,0]
[null,null,null,null,null,null,null,null,null,null,null,null,null,null,null,null,null,null,null,null,null,null,null,null,null,null,null,null,null,null,null,null,null,null,null,null,null,null,null,null,null,null,null,null,0]
[null,null,null,null,null,null,null,null,null,null,null,null,null,null,null,null,null,null,null,null,null,null,null,null,null,null,null,null,null,null,null,null,null,null,null,null,null,null,null,null,null,null,null,null,0]
[null,null,null,null,null,null,null,null,null,null,null,null,null,null,null,null,null,null,null,null,null,null,null,null,null,null,null,null,null,null,null,null,null,null,null,null,null,null,null,null,null,null,null,null,0]
[null,null,null,null,null,null,null,null,null,null,null,null,null,null,null,null,null,null,null,null,null,null,null,null,null,null,null,null,null,null,null,null,null,null,null,null,null,null,null,null,null,null,null,null,0]
[null,null,null,null,null,null,null,null,null,null,null,null,null,null,null,null,null,null,null,null,null,null,null,null,null,null,null,null,null,null,null,null,null,null,null,null,null,null,null,null,null,null,null,null,0]
[null,null,null,null,null,null,null,null,null,null,null,null,null,null,null,null,null,null,null,null,null,null,null,null,null,null,null,null,null,null,null,null,null,null,null,null,null,null,null,null,null,null,null,null,0]
[null,null,null,null,null,null,null,null,null,null,null,null,null,null,null,null,null,null,null,null,null,null,null,null,null,null,null,null,null,null,null,null,null,null,null,null,null,null,null,null,null,null,null,null,0]
[null,null,null,null,null,null,null,null,null,null,null,null,null,null,null,null,null,null,null,null,null,null,null,null,null,null,null,null,null,null,null,null,null,null,null,null,null,null,null,null,null,null,null,null,0]
[null,null,null,null,null,null,null,null,null,null,null,null,null,null,null,null,null,null,null,null,null,null,null,null,null,null,null,null,null,null,null,null,null,null,null,null,null,null,null,null,null,null,null,null,0]
[null,null,null,null,null,null,null,null,null,null,null,null,null,null,null,null,null,null,null,null,null,null,null,null,null,null,null,null,null,null,null,null,null,null,null,null,null,null,null,null,null,null,null,null,0]
[null,null,null,null,null,null,null,null,null,null,null,null,null,null,null,null,null,null,null,null,null,null,null,null,null,null,null,null,null,null,null,null,null,null,null,null,null,null,null,null,null,null,null,null,0]
[null,null,null,null,null,null,null,null,null,null,null,null,null,null,null,null,null,null,null,null,null,null,null,null,null,null,null,null,null,null,null,null,null,null,null,null,null,null,null,null,null,null,null,null,0]
[null,null,null,null,null,null,null,null,null,null,null,null,null,null,null,null,null,null,null,null,null,null,null,null,null,null,null,null,null,null,null,null,null,null,null,null,null,null,null,null,null,null,null,null,0]
[null,null,null,null,null,null,null,null,null,null,null,null,null,null,null,null,null,null,null,null,null,null,null,null,null,null,null,null,null,null,null,null,null,null,null,null,null,null,null,null,null,null,null,null,0]
[null,null,null,null,null,null,null,null,null,null,null,null,null,null,null,null,null,null,null,null,null,null,null,null,null,null,null,null,null,null,null,null,null,null,null,null,null,null,null,null,null,null,null,null,0]
[null,null,null,null,null,null,null,null,null,null,null,null,null,null,null,null,null,null,null,null,null,null,null,null,null,null,null,null,null,null,null,null,null,null,null,null,null,null,null,null,null,null,null,null,0]
[null,null,null,null,null,null,null,null,null,null,null,null,null,null,null,null,null,null,null,null,null,null,null,null,null,null,null,null,null,null,null,null,null,null,null,null,null,null,null,null,null,null,null,null,0]
[null,null,null,null,null,null,null,null,null,null,null,null,null,null,null,null,null,null,null,null,null,null,null,null,null,null,null,null,null,null,null,null,null,null,null,null,null,null,null,null,null,null,null,null,0]
[null,null,null,null,null,null,null,null,null,null,null,null,null,null,null,null,null,null,null,null,null,null,null,null,null,null,null,null,null,null,null,null,null,null,null,null,null,null,null,null,null,null,null,null,0]
[null,null,null,null,null,null,null,null,null,null,null,null,null,null,null,null,null,null,null,null,null,null,null,null,null,null,null,null,null,null,null,null,null,null,null,null,null,null,null,null,null,null,null,null,0]
[null,null,null,null,null,null,null,null,null,null,null,null,null,null,null,null,null,null,null,null,null,null,null,null,null,null,null,null,null,null,null,null,null,null,null,null,null,null,null,null,null,null,null,null,0]
["人数合計",null,null,null,null,null,null,null,null,null,{"$f":"CountColor(K4:K31)","v":0},{"$f":"CountColor(L4:L31)","v":1},2,2,2,2,2,2,3,3,2,1,2,3,3,3,3,2,2,1,1,1,2,2,2,2,2,1,1,0,0,0,0,0,{"$f":"SUM(AS4:AT31)","v":27.5}]